bitfinex-derivatives/quotes_BTCF0:USTF0_20251202
["timestamp","ask_amount","ask_price","bid_price","bid_amount"]
[1764716093470,0.0952376,91993.0,91992.0,0.01191991]
[1764716093667,0.0952376,91993.0,91983.0,0.16121728]
[1764716093668,0.0952378,91989.0,91988.0,0.00016311]
[1764716093862,0.0952378,91989.0,91988.0,0.01251704]
[1764716094065,0.4560378,91989.0,91988.0,0.01251704]
[1764716094976,0.4570378,91989.0,91988.0,0.01251704]
[1764716098572,0.4570378,91989.0,91988.0,0.09746704]
[1764716099177,0.4570378,91989.0,91988.0,0.05379704]
[1764716100375,0.4570378,91989.0,91988.0,0.01251704]
[1764716101774,0.48017,91989.0,91988.0,0.01251704]
[1764716109483,0.0108699,91971.0,91970.0,0.16121728]
[1764716109683,0.0903999,91971.0,91970.0,0.07953]
[1764716109885,0.0903999,91971.0,91970.0,0.09307056]
[1764716110889,0.0903999,91971.0,91970.0,0.229435]
[1764716111288,0.0903999,91971.0,91970.0,0.09307056]
[1764716113098,0.0497299,91971.0,91970.0,0.09307056]
[1764716113308,0.04989201,91980.0,91979.0,0.090399]
[1764716113987,0.09056201,91980.0,91979.0,0.090399]
[1764716114893,0.09156201,91980.0,91979.0,0.090399]
[1764716120302,0.09156201,91980.0,91979.0,0.07953]
[1764716121299,0.1147698,91980.0,91979.0,0.07953]
[1764716124008,0.1404298,91980.0,91979.0,0.07953]
[1764716132210,0.1147698,91980.0,91979.0,0.07953]
[1764716133911,0.1269398,91980.0,91979.0,0.04124]
[1764716134110,0.1269398,91980.0,91979.0,0.07559]
[1764716134711,0.0740998,91980.0,91979.0,0.07559]
[1764716134906,0.1001709,91980.0,91979.0,0.07559]
[1764716136010,0.07696311,91980.0,91979.0,0.17559]
[1764716136214,0.07696311,91980.0,91979.0,0.07559]
[1764716139505,0.04002311,91980.0,91979.0,0.07559]
[1764716139704,0.07696311,91980.0,91979.0,0.07559]
[1764716140408,0.00116311,91980.0,91979.0,0.07559]
[1764716141105,0.03697311,91980.0,91979.0,0.07559]
[1764716141415,0.07391311,91980.0,91979.0,0.07559]
[1764716143222,0.00116311,91980.0,91979.0,0.07559]
[1764716143408,0.03697311,91980.0,91979.0,0.07559]
[1764716144517,0.07391311,91980.0,91979.0,0.07559]
[1764716145419,0.07391311,91980.0,91979.0,0.17559]
[1764716145821,0.07391311,91980.0,91979.0,0.07559]
[1764716146819,0.07391311,91980.0,91979.0,0.17559]
[1764716148217,0.07391311,91980.0,91979.0,0.07559]
[1764716148418,0.07391311,91980.0,91979.0,0.04124]
[1764716148624,0.09653311,91980.0,91979.0,0.07855]
[1764716149125,0.09653311,91980.0,91979.0,0.04124]
[1764716149318,0.09653311,91980.0,91979.0,0.07855]
[1764716150120,0.07391311,91980.0,91979.0,0.07855]
[1764716162229,0.09700467,91980.0,91979.0,0.07855]
[1764716169644,0.02425467,91980.0,91979.0,0.07855]
[1764716170542,0.05780467,91980.0,91979.0,0.07855]
[1764716170945,0.09152467,91980.0,91979.0,0.07855]
[1764716171141,0.06843311,91980.0,91979.0,0.07855]
[1764716172742,0.06843311,91980.0,91979.0,0.1367786]
[1764716172946,0.06843311,91980.0,91979.0,0.07855]
[1764716173548,0.06843311,91980.0,91979.0,0.13684437]
[1764716174243,0.06843311,91980.0,91979.0,0.07855]
[1764716174645,0.06843311,91980.0,91979.0,0.13684437]
[1764716175056,0.09153134,91980.0,91979.0,0.07855]
[1764716183155,0.10211134,91980.0,91979.0,0.07855]
[1764716185873,0.09153134,91980.0,91979.0,0.07855]
[1764716188664,0.06843311,91980.0,91979.0,0.43935]
[1764716188867,0.06843311,91980.0,91979.0,0.49764459]
[1764716189177,0.06843311,91980.0,91979.0,0.43935]
[1764716189367,0.06843311,91980.0,91979.0,0.49764298]
[1764716190061,0.00116311,91980.0,91979.0,0.49764298]
[1764716190570,0.00116311,91980.0,91979.0,0.43935]
[1764716190772,0.06727,91995.0,91994.0,0.0108671]
[1764716190971,0.0901425,91995.0,91994.0,0.0786571]
[1764716191171,0.0228725,91995.0,91994.0,0.0786571]
[1764716191367,0.0108663,92002.0,92001.0,0.06779]
[1764716191575,0.06727,92005.0,92004.0,0.078656]
[1764716191782,0.09012839,92005.0,92004.0,0.078656]
[1764716192180,0.06727,92005.0,92004.0,0.078656]
[1764716192381,0.0901117,92005.0,92004.0,0.078656]
[1764716194278,0.1016717,92005.0,92004.0,0.078656]
[1764716194480,0.0901117,92005.0,92004.0,0.078656]
[1764716196282,0.06727,92005.0,92004.0,0.078656]
[1764716196785,0.06727,92005.0,92004.0,0.06779]
[1764716199891,0.06727,92005.0,92004.0,0.16779]
[1764716200088,0.06727,92005.0,92004.0,0.06779]
[1764716201688,0.03355,92005.0,92004.0,0.06779]
[1764716202397,0.06357,92005.0,92004.0,0.06779]
[1764716203188,0.00027172,92006.0,92005.0,0.0836259]
[1764716203587,0.03027172,92006.0,92005.0,0.0836259]
[1764716203780,0.06029172,92006.0,92005.0,0.0836259]
[1764716209391,0.06029172,92006.0,92005.0,0.06049]
[1764716210299,0.0708859,92005.0,92004.0,0.010866]
[1764716210688,0.0708859,92005.0,92004.0,0.041726]
[1764716210889,0.0708859,92005.0,92004.0,0.071356]
[1764716211394,0.0708866,91999.0,91998.0,0.14601043]
[1764716211594,0.0708866,91999.0,91998.0,0.06049]
[1764716211984,0.0708866,91999.0,91998.0,0.0713567]
[1764716213190,0.0728866,91999.0,91998.0,0.0713567]
[1764716213588,0.0728866,91999.0,91996.0,0.3608]
[1764716213589,0.0108668,91997.0,91996.0,0.3608]
[1764716213793,0.0108668,91997.0,91995.0,0.00016311]
[1764716213794,0.06002,91996.0,91995.0,0.00016311]
[1764716216194,0.08283926,91996.0,91995.0,0.00016311]
[1764716216394,0.08383926,91996.0,91995.0,0.00016311]
[1764716220308,0.0708887,91981.0,91980.0,0.06049]
[1764716221705,0.0718887,91981.0,91980.0,0.06049]
[1764716232318,0.0418687,91981.0,91980.0,0.06921]
[1764716232520,0.0118687,91981.0,91980.0,0.16921]
[1764716232831,0.0687287,91981.0,91980.0,0.1800788]
[1764716233017,0.0687287,91981.0,91980.0,0.0800788]
[1764716233612,0.0687287,91981.0,91980.0,0.0713588]
[1764716233812,0.0687287,91981.0,91980.0,0.06049]
[1764716234626,0.0687287,91981.0,91980.0,0.0713588]
[1764716237225,0.0687287,91981.0,91980.0,0.06049]
[1764716237921,0.0687287,91981.0,91980.0,0.0713588]
[1764716238428,0.05786,91981.0,91980.0,0.0713588]
[1764716243531,0.0687287,91981.0,91980.0,0.0713588]
[1764716245226,0.0687287,91981.0,91980.0,0.12963093]
[1764716249326,0.0687287,91981.0,91980.0,0.0713588]
[1764716265242,0.0687287,91981.0,91980.0,0.06049]
[1764716265436,0.0687287,91981.0,91980.0,0.0713588]
[1764716266641,0.0687287,91981.0,91980.0,0.06049]
[1764716267132,0.09145401,91981.0,91980.0,0.11891018]
[1764716267336,0.001,91981.0,91980.0,0.0808488]
[1764716267536,0.00016311,91990.0,91989.0,0.0848878]
[1764716267836,0.00016311,91990.0,91989.0,0.5897278]
[1764716268428,0.3608,92001.0,92000.0,0.07428]
[1764716269232,0.38899,92001.0,92000.0,0.07428]
[1764716269634,0.02819,92001.0,92000.0,0.07428]
[1764716271135,0.0108663,92002.0,92001.0,0.0672664]
[1764716271745,0.0390563,92002.0,92001.0,0.0672664]
[1764716271946,0.00027172,92006.0,92005.0,0.0108659]
[1764716272249,0.00027172,92006.0,92005.0,0.0672659]
[1764716273036,0.00027172,92006.0,92005.0,0.1672659]
[1764716273737,0.00027172,92006.0,92005.0,0.0672659]
[1764716274333,0.01113752,92006.0,92005.0,0.0672659]
[1764716274539,0.00027172,92006.0,92005.0,0.0672659]
[1764716275148,0.00027172,92006.0,92005.0,0.1672659]
[1764716276247,0.00027172,92006.0,92005.0,0.2556518]
[1764716276444,0.01113752,92006.0,92005.0,0.2556518]
[1764716276953,0.00027172,92006.0,92005.0,0.2556518]
[1764716277341,0.05638172,92006.0,92005.0,0.5720259]
[1764716279040,0.05638172,92006.0,92005.0,0.0564]
[1764716280249,0.0669767,91998.0,91997.0,0.0672668]
[1764716280552,0.0669767,91998.0,91997.0,0.5719868]
[1764716281337,0.0689767,91998.0,91997.0,0.84877639]
[1764716281541,0.0689767,91998.0,91997.0,0.25636697]
[1764716285444,0.0689767,91998.0,91997.0,0.17143002]
[1764716285754,0.0689767,91998.0,91997.0,0.25636697]
[1764716287557,0.0689767,91998.0,91997.0,0.22897697]
[1764716288056,0.0689767,91998.0,91997.0,0.14404002]
[1764716288254,0.0689767,91998.0,91997.0,0.11503002]
[1764716288459,0.0767874,91992.0,91991.0,0.00016311]
[1764716288760,0.4375874,91992.0,91991.0,0.00016311]
[1764716289953,0.4385874,91992.0,91991.0,0.00016311]
[1764716290458,0.0655487,91981.0,91980.0,0.21790008]
[1764716290649,0.0655487,91981.0,91980.0,0.05674]
[1764716291564,0.0665487,91981.0,91980.0,0.05674]
[1764716300969,0.0665487,91981.0,91980.0,0.0676088]
[1764716303568,0.0665487,91981.0,91980.0,0.05674]
[1764716306466,0.0665487,91981.0,91980.0,0.02773]
[1764716306771,0.0665487,91981.0,91980.0,0.05674]
[1764716318383,0.0665487,91981.0,91980.0,0.1150813]
[1764716320188,0.0665487,91981.0,91980.0,0.05674]
[1764716320392,0.0665487,91981.0,91980.0,0.1150813]
[1764716321087,0.0665487,91981.0,91980.0,0.05674]
[1764716321286,0.0665487,91981.0,91980.0,0.1150813]
[1764716324097,0.0118687,91981.0,91980.0,0.1245813]
[1764716324401,0.0118687,91981.0,91980.0,0.0771088]
[1764716325892,0.001,91981.0,91980.0,0.1771088]
[1764716326085,0.001,91981.0,91980.0,0.1781088]
[1764716326486,0.01103091,91990.0,91989.0,0.0697578]
[1764716326688,0.01103091,91990.0,91989.0,0.12825112]
[1764716327498,0.01103091,91990.0,91989.0,0.0697578]
[1764716328098,0.01203091,91990.0,91989.0,0.0697578]
[1764716330091,0.01203091,91990.0,91989.0,0.1697578]
[1764716330594,0.01203091,91990.0,91989.0,0.0697578]
[1764716333001,0.00116311,91990.0,91989.0,0.1697578]
[1764716333200,0.00116311,91990.0,91989.0,0.0697578]
[1764716334399,0.010867,91996.0,91995.0,0.0697567]
[1764716334594,0.010867,91996.0,91995.0,0.12817287]
[1764716334800,0.3608,92001.0,91998.0,0.0697565]
[1764716334801,0.0108667,91999.0,91998.0,0.0697565]
[1764716334997,0.0108667,91999.0,91998.0,0.5744365]
[1764716335590,0.0108667,91999.0,91998.0,0.56357]
[1764716336598,0.0118667,91999.0,91998.0,0.65217993]
[1764716338605,0.0118667,91999.0,91998.0,0.56357]
[1764716339610,0.0118667,91999.0,91998.0,0.65236247]
[1764716339904,0.0118667,91999.0,91998.0,0.14768247]
[1764716340099,0.0118667,91999.0,91998.0,0.65232247]
[1764716340402,0.0701867,91999.0,91998.0,0.14768247]
[1764716341607,0.0118667,91999.0,91998.0,0.14768247]
[1764716347009,0.0399467,91999.0,91998.0,0.14768247]
[1764716347204,0.0118667,91999.0,91998.0,0.14768247]
[1764716348908,0.0399467,91999.0,91998.0,0.14768247]
[1764716349914,0.0687267,91999.0,91998.0,0.14768247]
[1764716350912,0.0687267,91999.0,91998.0,0.05889]
[1764716351614,0.0118667,91999.0,91998.0,0.05889]
[1764716352908,0.001,91999.0,91998.0,0.14474445]
[1764716353211,0.001,91999.0,91998.0,0.56653231]
[1764716353418,0.00027172,92006.0,92005.0,0.0650459]
[1764716353601,0.3608,92014.0,92013.0,0.0650449]
[1764716353806,0.3716633,92028.0,92027.0,0.05418]
[1764716354513,0.3997433,92028.0,92027.0,0.05418]
[1764716354711,0.4285233,92028.0,92027.0,0.05418]
[1764716355516,0.4295233,92028.0,92027.0,0.05418]
[1764716356511,0.4295233,92028.0,92021.0,0.03888402]
[1764716356512,0.0677239,92022.0,92021.0,0.03888402]
[1764716356712,0.0677242,92019.0,92018.0,0.00016301]
[1764716356920,0.4285242,92019.0,92018.0,0.00016301]
[1764716358016,0.0677252,92011.0,92008.0,0.03888402]
[1764716358210,0.0677256,92007.0,92006.0,0.05418]
[1764716358410,0.05686,92006.0,92005.0,0.09306402]
[1764716358809,0.05686,92006.0,92005.0,0.05418]
[1764716359011,0.05686,92006.0,92005.0,0.09309904]
[1764716359920,0.05686,92006.0,92005.0,0.05418]
[1764716362513,0.05686,92006.0,92005.0,0.09309904]
[1764716363216,0.05686,92006.0,92005.0,0.05418]
[1764716364219,0.05686,92003.0,92002.0,0.06606904]
[1764716364425,0.05686,92003.0,92002.0,0.05418]
[1764716365528,0.05686,92003.0,92002.0,0.05518]
[1764716366922,0.0677268,91997.0,91996.0,1.2e-07]
[1764716367127,0.0677287,91981.0,91980.0,0.16118962]
[1764716367425,0.01797,91985.0,91974.0,0.07763814]
[1764716367426,0.0677294,91975.0,91974.0,0.05418]
[1764716368125,0.0677294,91975.0,91974.0,0.25414696]
[1764716368825,0.0677294,91975.0,91974.0,0.05418]
[1764716370125,0.05686,91973.0,91972.0,0.38795]
[1764716370526,0.05686,91973.0,91972.0,0.41498]
[1764716371029,0.05686,91973.0,91972.0,0.61494696]
[1764716371536,0.0108686,91982.0,91981.0,0.0650487]
[1764716371724,0.0108686,91982.0,91981.0,0.5695687]
[1764716372827,0.0118686,91982.0,91981.0,0.6695687]
[1764716373132,0.0138686,91982.0,91981.0,0.5695687]
[1764716373722,0.003,91982.0,91981.0,0.5695687]
[1764716374028,0.3608,91989.0,91988.0,0.0666179]
[1764716374228,0.01629,92016.0,91988.0,0.0666179]
[1764716374229,0.0738,92016.0,92005.0,0.05515]
[1764716374434,0.0683746,92016.0,92015.0,0.05515]
[1764716374631,0.0108646,92016.0,92015.0,0.05515]
[1764716375535,0.0118646,92016.0,92015.0,0.05515]
[1764716375733,0.0118646,92016.0,92015.0,0.15515]
[1764716375922,0.0693746,92016.0,92015.0,0.05515]
[1764716376933,0.0683756,92007.0,92006.0,0.00016301]
[1764716377336,0.0683767,91998.0,91997.0,0.3608]
[1764716377631,0.0683767,91998.0,91990.0,0.16118962]
[1764716377632,0.0683775,91991.0,91990.0,0.16118962]
[1764716377835,0.05751,91989.0,91982.0,0.50452]
[1764716378036,0.05751,91989.0,91988.0,0.38791]
[1764716378822,0.05751,91989.0,91988.0,0.41595]
[1764716379838,0.02915,91989.0,91988.0,0.41595]
[1764716382439,0.0108675,91991.0,91990.0,0.05515]
[1764716382738,0.0108675,91991.0,91990.0,0.25511697]
[1764716382929,0.0108668,91997.0,91990.0,0.19996697]
[1764716383127,0.00016301,91998.0,91997.0,0.0660168]
[1764716383437,0.00016301,91998.0,91997.0,0.5705368]
[1764716383636,0.0108659,92005.0,92003.0,0.0108661]
[1764716383837,0.0108659,92005.0,92004.0,0.41595]
[1764716385040,0.0108659,92005.0,92004.0,0.41695]
[1764716385444,0.0683759,92005.0,92004.0,0.41695]
[1764716386434,0.0683759,92005.0,92004.0,0.3618]
[1764716386634,0.0683759,92005.0,92004.0,0.38891]
[1764716386834,0.0683759,92005.0,92004.0,0.41695]
[1764716387134,0.0683759,92005.0,92004.0,0.001]
[1764716387831,0.4291759,92005.0,92004.0,0.001]
[1764716388838,0.4291759,92005.0,92004.0,0.05615]
[1764716389042,0.0400159,92005.0,92004.0,0.05615]
[1764716389236,0.0108659,92005.0,92004.0,0.41695]
[1764716389435,0.0108656,92008.0,92007.0,0.05515]
[1764716389646,0.00016301,92014.0,92005.0,0.0108659]
[1764716389647,0.00016301,92014.0,92012.0,0.05515]
[1764716389954,0.01102791,92014.0,92013.0,0.0660149]
[1764716390654,0.01102791,92014.0,92013.0,0.4268149]
[1764716391840,0.01102791,92014.0,92013.0,0.41595]
[1764716392755,0.01102791,92014.0,92013.0,0.05515]
[1764716392955,0.06853791,92014.0,92013.0,0.05615]
[1764716393358,0.04017791,92014.0,92013.0,0.05615]
[1764716393849,0.04017791,92014.0,92012.0,0.3608]
[1764716393850,0.05751,92013.0,92012.0,0.3608]
[1764716394447,0.05751,92013.0,92012.0,0.41595]
[1764716396957,0.05751,92013.0,92012.0,0.3608]
[1764716397150,0.05751,92011.0,92010.0,0.50448]
[1764716398354,0.05751,92011.0,92010.0,0.55963]
[1764716399449,0.05751,92011.0,92010.0,0.50448]
[1764716399650,0.05751,92011.0,92010.0,0.55963]
[1764716400553,0.05751,92004.0,92003.0,0.41595]
[1764716400750,0.00016301,92014.0,92013.0,0.05515]
[1764716400751,0.06853781,92014.0,92013.0,0.05515]
[1764716400961,0.06853781,92014.0,92003.0,0.03884566]
[1764716400962,0.0683759,92005.0,92004.0,0.09399566]
[1764716401144,0.0683759,92005.0,92002.0,0.08892748]
[1764716401145,0.05751,92003.0,92002.0,0.08892748]
[1764716401760,0.0683767,91998.0,91997.0,0.41595]
[1764716401956,0.0683767,91998.0,91997.0,0.3608]
[1764716402260,0.0683767,91998.0,91995.0,0.00016301]
[1764716402261,0.05751,91996.0,91995.0,0.05531301]
[1764716402449,0.0108669,91997.0,91995.0,0.00016301]
[1764716402650,0.0683769,91997.0,91996.0,0.05515]
[1764716402844,0.05751,91996.0,91995.0,0.00016301]
[1764716403252,0.05737131,91996.0,91995.0,0.00016301]
[1764716403562,0.08223,91985.0,91984.0,0.03884566]
[1764716403757,0.08223,91979.0,91978.0,0.03884566]
[1764716403951,0.1110493,91976.0,91975.0,0.03884566]
[1764716404150,0.1110493,91976.0,91973.0,0.03884566]
[1764716404151,0.08223,91974.0,91973.0,0.03884566]
[1764716404351,0.0930999,91971.0,91970.0,0.09035945]
[1764716405260,0.08223,91971.0,91970.0,0.09196379]
[1764716405459,0.08239301,91983.0,91982.0,0.08024]
[1764716406258,0.08223,91973.0,91972.0,0.07867724]
[1764716406464,0.08223,91973.0,91972.0,0.03979]
[1764716406762,0.08223,91973.0,91972.0,0.08024]
[1764716407562,0.10018,91971.0,91970.0,0.05110612]
[1764716407858,0.08223,91967.0,91966.0,0.00027184]
[1764716408049,0.08223,91967.0,91966.0,0.44131184]
[1764716408256,0.0108702,91969.0,91968.0,0.08024]
[1764716408455,0.0523102,91969.0,91968.0,0.08024]
[1764716408863,0.0931002,91969.0,91968.0,0.08024]
[1764716409060,0.0931002,91969.0,91966.0,0.00027184]
[1764716409061,0.08223,91967.0,91966.0,0.00027184]
[1764716409269,0.08223,91967.0,91966.0,0.00127184]
[1764716409657,0.08223,91967.0,91966.0,0.00027184]
[1764716410059,0.0931004,91967.0,91966.0,0.00027184]
[1764716411169,0.0931004,91967.0,91966.0,0.08051184]
[1764716411364,0.0931004,91967.0,91966.0,0.08151184]
[1764716411571,0.0108704,91967.0,91966.0,0.44231184]
[1764716411963,0.0523104,91967.0,91966.0,0.44231184]
[1764716413466,0.0108704,91967.0,91966.0,0.44231184]
[1764716413862,0.0523088,91980.0,91979.0,0.08024]
[1764716414176,0.37875,91992.0,91982.0,0.08024]
[1764716414371,0.0108682,91986.0,91982.0,0.08024]
[1764716414567,0.0108678,91990.0,91982.0,0.08024]
[1764716414771,0.0108684,91985.0,91982.0,0.08024]
[1764716415970,0.04160301,91983.0,91982.0,0.08024]
[1764716419876,0.08239301,91983.0,91982.0,0.08024]
[1764716420375,0.08239301,91983.0,91977.0,0.7324691]
[1764716420376,0.0930991,91978.0,91977.0,0.76139]
[1764716421182,0.0930991,91978.0,91977.0,0.80184]
[1764716422379,0.08223,91978.0,91977.0,0.80184]
[1764716425776,0.08223,91978.0,91977.0,0.76139]
[1764716426275,0.08223,91978.0,91977.0,0.80184]
[1764716430182,0.08223,91978.0,91977.0,0.44104]
[1764716434585,0.08223,91978.0,91977.0,0.49938582]
[1764716434784,0.08223,91978.0,91977.0,0.44104]
[1764716438595,0.08223,91978.0,91977.0,0.49938582]
[1764716440001,0.00016301,91983.0,91982.0,0.0830986]
[1764716440298,0.01103151,91983.0,91982.0,0.0830986]
[1764716440497,0.00016301,91983.0,91982.0,0.0830986]
[1764716440690,0.00016301,91983.0,91982.0,0.07223]
[1764716441996,0.00016301,91983.0,91982.0,0.13166719]
[1764716442200,0.0108672,91995.0,91994.0,0.0108669]
[1764716442498,0.0108672,91995.0,91994.0,0.4438969]
[1764716444391,0.0108672,91995.0,91994.0,0.50231127]
[1764716445102,0.0001631,92004.0,91994.0,0.50231127]
[1764716445103,0.0108668,91998.0,91997.0,0.0830964]
[1764716445301,0.0108668,91998.0,91997.0,0.1830964]
[1764716446301,0.0108668,91998.0,91997.0,0.0830964]
[1764716450403,0.0108668,91998.0,91997.0,0.12199704]
[1764716452399,0.0825368,91998.0,91997.0,0.11113064]
[1764716452711,0.1036468,91998.0,91997.0,0.11113064]
[1764716453321,0.1036468,91998.0,91997.0,0.07450064]
[1764716453500,0.1036468,91998.0,91997.0,0.07223]
[1764716456410,0.1036468,91998.0,91997.0,0.0356]
[1764716456610,0.1036468,91998.0,91997.0,0.07223]
[1764716459705,0.0825369,91996.0,91995.0,0.03890064]
[1764716459906,0.0825369,91996.0,91995.0,0.07450064]
[1764716460113,0.0825369,91996.0,91995.0,0.0356]
[1764716460311,0.0825369,91996.0,91995.0,0.11113064]
[1764716460503,0.07167,91995.0,91994.0,0.03890064]
[1764716460703,0.0825375,91991.0,91990.0,0.99620156]
[1764716460914,0.0825375,91991.0,91990.0,0.93779]
[1764716461513,0.09278,91986.0,91985.0,0.0001631]
[1764716461704,0.09278,91986.0,91985.0,0.03909084]
[1764716461905,0.09278,91986.0,91985.0,0.0001631]
[1764716462810,0.0108679,91988.0,91985.0,0.0001631]
[1764716463013,0.0429779,91988.0,91987.0,0.06361]
[1764716463609,0.0764379,91988.0,91987.0,0.06361]
[1764716463915,0.0429776,91991.0,91990.0,0.06361]
[1764716464118,0.0429776,91991.0,91990.0,0.46334107]
[1764716464299,0.0429776,91991.0,91990.0,0.42441]
[1764716465115,0.0429776,91991.0,91990.0,0.42541]
[1764716466120,0.0764376,91991.0,91990.0,0.42541]
[1764716466820,0.0429776,91991.0,91990.0,0.42541]
[1764716468924,0.0429773,91994.0,91993.0,0.0108669]
[1764716469133,0.0764375,91992.0,91991.0,0.06361]
[1764716469318,0.0764375,91992.0,91991.0,0.0744775]
[1764716470023,0.0764375,91992.0,91991.0,0.06361]
[1764716470420,0.0108675,91992.0,91991.0,0.06361]
[1764716470821,0.0108675,91992.0,91991.0,0.06461]
[1764716473532,0.0108675,91992.0,91991.0,0.12302156]
[1764716474123,0.0429775,91992.0,91991.0,0.12302156]
[1764716474332,0.0108675,91992.0,91991.0,0.12302156]
[1764716474733,0.0429775,91992.0,91991.0,0.12302156]
[1764716474937,0.0429775,91992.0,91991.0,0.06461]
[1764716475135,0.0108675,91992.0,91991.0,0.06461]
[1764716476937,0.0429775,91992.0,91991.0,0.06461]
[1764716477145,0.0764375,91992.0,91991.0,0.12306166]
[1764716478634,0.0764375,91992.0,91991.0,0.06461]
[1764716479523,0.0973175,91992.0,91991.0,0.06461]
[1764716479722,0.0973175,91992.0,91991.0,0.12306812]
[1764716480629,0.0973175,91992.0,91991.0,0.05945812]
[1764716480818,0.0973175,91992.0,91991.0,0.001]
[1764716481024,0.0973175,91992.0,91991.0,0.03241]
[1764716481836,0.0973175,91992.0,91991.0,0.12306812]
[1764716483632,0.0973175,91992.0,91991.0,0.06461]
[1764716483833,0.0973175,91992.0,91991.0,0.12308169]
[1764716484133,0.0973175,91992.0,91991.0,0.001]
[1764716484724,0.0973175,91992.0,91991.0,0.03998778]
[1764716485934,0.0973175,91992.0,91991.0,0.03998829]
[1764716487137,0.0973175,91992.0,91991.0,0.001]
[1764716494143,0.0684379,91988.0,91987.0,0.03898829]
[1764716494443,0.05745,91987.0,91986.0,0.03898829]
[1764716495531,0.0696181,91986.0,91985.0,0.03915139]
[1764716496538,0.0696181,91986.0,91963.0,0.5046]
[1764716496539,0.05875,91973.0,91972.0,0.05847169]
[1764716496734,0.01778,91975.0,91962.0,0.3608]
[1764716496735,0.07653,91970.0,91969.0,0.05847169]
[1764716496936,0.07653,91970.0,91968.0,0.05847169]
[1764716496937,0.05875,91969.0,91968.0,0.05847169]
[1764716497130,0.05875,91969.0,91966.0,0.05874353]
[1764716497332,0.05875,91967.0,91966.0,0.02967184]
[1764716497641,0.10875,91967.0,91966.0,0.00027184]
[1764716498939,0.07653,91962.0,91961.0,0.01221927]
[1764716499141,0.0696214,91958.0,91957.0,0.0001631]
[1764716499547,0.0696214,91958.0,91957.0,0.01188848]
[1764716499741,0.0696214,91958.0,91957.0,0.0001631]
[1764716500249,0.0696214,91958.0,91957.0,0.01161447]
[1764716500447,0.0696214,91958.0,91957.0,0.0001631]
[1764716500746,0.0696214,91958.0,91957.0,0.0011631]
[1764716501149,0.0696214,91958.0,91957.0,0.01252937]
[1764716502431,0.0696214,91958.0,91957.0,0.04192937]
[1764716504042,0.1196214,91958.0,91957.0,0.01252937]
[1764716512251,0.0696214,91958.0,91957.0,0.01252937]
[1764716512457,0.0696214,91958.0,91935.0,0.3608]
[1764716512458,0.069624,91936.0,91935.0,0.3608]
[1764716512644,0.0696251,91927.0,91926.0,0.00027196]
[1764716512957,0.0696273,91908.0,91907.0,0.4199]
[1764716513451,0.06971612,91908.0,91907.0,0.40181514]
[1764716513655,0.06971612,91908.0,91907.0,0.37241514]
[1764716514847,0.06971612,91908.0,91907.0,0.40181514]
[1764716515047,0.06971612,91908.0,91907.0,0.43651514]
[1764716515664,0.06971612,91908.0,91907.0,0.43551514]
[1764716516142,0.06971612,91908.0,91907.0,0.43251514]
[1764716516340,0.06971612,91908.0,91907.0,0.43651514]
[1764716518147,0.06971612,91908.0,91907.0,0.43251514]
[1764716518360,0.06971612,91908.0,91907.0,0.43651514]
[1764716519258,0.06971612,91908.0,91907.0,0.43251514]
[1764716519559,0.06971612,91908.0,91907.0,0.43651514]
[1764716519849,0.06971612,91908.0,91907.0,0.43251514]
[1764716520055,0.06971612,91908.0,91907.0,0.43651514]
[1764716520866,0.08749612,91908.0,91907.0,0.43651514]
[1764716522244,0.06971612,91908.0,91907.0,0.43651514]
[1764716523758,0.01096612,91908.0,91907.0,0.43651514]
[1764716524964,0.01096612,91908.0,91907.0,0.43751514]
[1764716525558,0.01096612,91908.0,91907.0,0.43651514]
[1764716525758,0.01096612,91908.0,91907.0,0.43751514]
[1764716526068,0.01096612,91908.0,91907.0,0.431832]
[1764716527058,0.01096612,91908.0,91907.0,0.430832]
[1764716527260,0.01096612,91908.0,91907.0,0.431832]
[1764716527858,0.01096612,91908.0,91907.0,0.430832]
[1764716528054,0.01096612,91908.0,91907.0,0.431832]
[1764716528859,0.06934612,91908.0,91907.0,0.425832]
[1764716529062,0.06934612,91908.0,91907.0,0.431832]
[1764716529262,0.01096612,91908.0,91907.0,0.431832]
[1764716530462,0.03886612,91908.0,91907.0,0.426832]
[1764716530670,0.03886612,91908.0,91907.0,0.431832]
[1764716530967,8.882e-05,91908.0,91907.0,0.431832]
[1764716531858,8.882e-05,91908.0,91907.0,0.430832]
[1764716532065,8.882e-05,91908.0,91907.0,0.431832]
[1764716532468,0.0108765,91916.0,91915.0,0.05949]
[1764716532862,0.00016319,91917.0,91916.0,0.05949]
[1764716534273,0.00016319,91917.0,91916.0,0.06449]
[1764716534870,0.00016319,91917.0,91916.0,0.06649]
[1764716537259,0.00016319,91917.0,91916.0,0.16649]
[1764716539170,0.00016319,91917.0,91916.0,0.06649]
[1764716540172,0.00016319,91917.0,91916.0,0.16649]
[1764716540372,0.00016319,91917.0,91916.0,0.20534009]
[1764716540677,0.00016319,91917.0,91916.0,0.16749]
[1764716540875,0.0108751,91927.0,91926.0,0.0703652]
[1764716541063,0.0108751,91927.0,91926.0,0.4311652]
[1764716541965,0.0108751,91927.0,91926.0,0.4351652]
[1764716542666,0.0108751,91927.0,91926.0,0.4361652]
[1764716544070,0.0108748,91930.0,91926.0,0.3668]
[1764716544274,0.0108748,91930.0,91929.0,0.05949]
[1764716544962,0.0108748,91930.0,91929.0,0.0703644]
[1764716545366,0.0387748,91930.0,91929.0,0.05949]
[1764716545670,0.0692551,91927.0,91926.0,0.007]
[1764716545863,0.4692551,91927.0,91926.0,0.007]
[1764716546062,0.0692562,91918.0,91917.0,0.00016319]
[1764716546863,0.0692562,91918.0,91917.0,0.05965319]
[1764716547370,0.0692562,91918.0,91917.0,0.06565319]
[1764716552077,0.1192562,91918.0,91917.0,0.00616319]
[1764716552281,0.1092562,91918.0,91917.0,0.00616319]
[1764716552676,0.1192562,91918.0,91917.0,0.00616319]
[1764716553672,0.1192562,91918.0,91917.0,0.03665319]
[1764716553877,0.1192562,91918.0,91917.0,0.06438319]
[1764716553878,0.0692562,91918.0,91917.0,0.06438319]
[1764716556280,0.0692562,91918.0,91917.0,0.00616319]
[1764716556487,0.1192562,91918.0,91917.0,0.00616319]
[1764716556682,0.0692562,91918.0,91917.0,0.00372628]
[1764716556883,0.0108773,91908.0,91906.0,0.3608]
[1764716557093,0.4461759,91920.0,91919.0,0.05823]
[1764716557384,0.0853759,91920.0,91919.0,0.05823]
[1764716558076,0.0853759,91920.0,91919.0,0.05923]
[1764716559383,0.0681959,91920.0,91919.0,0.05923]
[1764716559687,0.0681959,91920.0,91919.0,0.06223]
[1764716561274,0.0108759,91920.0,91919.0,0.06223]